bitfinex/quotes_ETHUSD_20230403
["timestamp","ask_amount","ask_price","bid_price","bid_amount"]
[1680510570167,0.33093268,1813.7,1813.3,0.30373]
[1680510570391,0.33093268,1813.7,1813.3,0.30372]
[1680510571288,3.01776728,1813.6,1813.3,0.84921]
[1680510571501,0.23,1813.8,1813.3,0.84921]
[1680510571502,2.78776728,1813.7,1813.3,0.84921]
[1680510571686,0.23,1813.6,1813.3,0.82721]
[1680510572686,1.218,1813.8,1813.3,0.82721]
[1680510572888,1.216,1813.8,1813.3,0.82721]
[1680510573099,1.216,1813.8,1813.3,0.84921]
[1680510573502,2.78776728,1813.7,1813.3,0.29773]
[1680510573799,0.23,1813.6,1813.3,0.29773]
[1680510573967,0.23,1813.6,1813.3,0.84921]
[1680510574168,0.53177673,1813.6,1813.3,0.84921]
[1680510574396,0.53177673,1813.6,1813.3,0.29773]
[1680510576299,0.53177673,1813.6,1813.3,0.27573]
[1680510576864,2.78776728,1813.5,1813.3,0.27229545]
[1680510577061,2.78776728,1813.5,1813.3,0.82377545]
[1680510577262,3.12052168,1813.5,1813.3,0.82377545]
[1680510577467,0.53977673,1813.6,1813.3,1.92673545]
[1680510577666,0.23,1813.6,1813.3,1.92673545]
[1680510577869,0.23,1813.6,1813.3,0.27229545]
[1680510578366,0.23,1813.7,1813.3,0.84577545]
[1680510578567,0.23,1813.7,1813.3,0.27229545]
[1680510579665,0.23,1813.7,1813.2,0.5515]
[1680510579666,1.21,1813.6,1813.2,0.5515]
[1680510580009,3.13876728,1813.5,1813.3,0.27573]
[1680510581175,3.13876728,1813.5,1813.2,0.27574]
[1680510581377,3.13876728,1813.5,1813.3,0.27573]
[1680510581602,3.13876728,1813.5,1813.2,0.27574]
[1680510582928,3.13876728,1813.5,1813.2,0.82725]
[1680510583131,3.01776728,1813.5,1813.2,0.82725]
[1680510584015,1.218,1813.6,1813.2,0.82725]
[1680510584016,0.008,1813.6,1813.3,0.022]
[1680510584324,4.216,1813.8,1813.4,0.55144]
[1680510584531,7.00376728,1813.8,1813.4,0.82716]
[1680510584726,7.00576728,1813.8,1813.4,0.82716]
[1680510585636,0.23,1813.7,1813.4,0.82716]
[1680510586920,3.01776728,1813.7,1813.4,0.27572]
[1680510587829,0.0234809,1813.6,1813.4,0.27572]
[1680510588524,0.0234809,1813.6,1813.3,0.8492]
[1680510589945,0.0234809,1813.6,1813.3,0.8112]
[1680510590142,0.32820572,1813.6,1813.3,0.8112]
[1680510591608,0.23,1813.5,1813.3,0.29772]
[1680510593338,0.23,1813.5,1813.3,0.8492]
[1680510593541,0.23,1813.5,1813.3,0.8372]
[1680510593735,3.115973,1813.6,1813.3,1.94016]
[1680510593928,3.121973,1813.6,1813.3,1.94016]
[1680510594145,0.0294809,1813.6,1813.3,1.94016]
[1680510594341,0.2534809,1813.6,1813.3,1.94016]
[1680510594943,0.0234809,1813.6,1813.3,1.94016]
[1680510595647,1.222,1813.7,1813.3,1.94016]
[1680510595952,0.008,1813.8,1813.4,0.01]
[1680510596166,3.01776728,1813.8,1813.5,0.82711]
[1680510596445,0.006,1813.8,1813.5,0.82711]
[1680510596647,0.10434702,1813.9,1813.5,0.83711]
[1680510597449,0.10434702,1813.9,1813.5,0.82711]
[1680510599352,0.10434702,1813.9,1813.7,1.92973]
[1680510599549,0.10434702,1813.9,1813.8,4.82774728]
[1680510599724,0.10434702,1813.9,1813.8,12.92428]
[1680510599926,0.10434702,1813.9,1813.8,13.49770495]
[1680510600615,0.10434702,1813.9,1813.8,22.08547223]
[1680510601063,0.10434702,1813.9,1813.8,23.08547223]
[1680510601255,0.10434702,1813.9,1813.8,30.08547223]
[1680510601568,0.10434702,1813.9,1813.8,30.66447764]
[1680510601727,0.10434702,1813.9,1813.8,26.50823815]
[1680510601930,0.10434702,1813.9,1813.8,30.66447764]
[1680510602317,0.10434702,1813.9,1813.8,32.09001559]
[1680510602518,4.702e-05,1813.9,1813.8,30.66447764]
[1680510602753,0.11000001,1814.2,1813.8,30.66447764]
[1680510603057,0.11000001,1814.2,1814.1,8.94531]
[1680510603267,0.11000001,1814.2,1814.1,11.73507728]
[1680510603555,0.11000001,1814.2,1814.1,11.74507728]
[1680510605151,0.11000001,1814.2,1814.1,12.30740399]
[1680510605364,0.11000001,1814.2,1814.1,12.30737161]
[1680510605572,0.11000001,1814.2,1814.1,11.74507728]
[1680510606647,0.11000001,1814.2,1814.1,12.95107728]
[1680510607024,0.11000001,1814.2,1814.1,11.74507728]
[1680510612586,0.11000001,1814.2,1814.1,21.74507728]
[1680510613241,0.11000001,1814.2,1814.1,24.74507728]
[1680510615315,0.11000001,1814.8,1814.6,5.8]
[1680510615477,0.11000001,1814.8,1814.7,11.73244728]
[1680510615638,0.11000001,1814.8,1814.7,11.74444728]
[1680510616076,0.11000001,1814.8,1814.7,14.74444728]
[1680510616283,0.11000001,1814.8,1814.7,7.74068]
[1680510616758,0.11000001,1814.8,1814.7,10.52844728]
[1680510616957,0.11000001,1814.8,1814.7,11.74444728]
[1680510617151,0.11000001,1814.8,1814.7,7.74068]
[1680510617349,0.11000001,1814.8,1814.7,1.94068]
[1680510617578,0.11000001,1814.8,1814.7,0.28552]
[1680510617815,0.11000001,1814.8,1814.7,0.83657]
[1680510618004,0.11000001,1814.8,1814.7,0.28552]
[1680510618151,0.11000001,1814.8,1814.6,6.08753]
[1680510618490,0.11000001,1814.8,1814.6,0.012]
[1680510618689,0.11000001,1814.8,1814.6,0.01]
[1680510618978,0.13348091,1814.8,1814.5,0.01]
[1680510619392,0.13348091,1814.8,1814.4,0.01]
[1680510619686,0.13348091,1814.8,1814.4,0.27557]
[1680510619881,0.13948091,1814.8,1814.4,0.82671]
[1680510620068,0.13348091,1814.8,1814.6,0.27554]
[1680510620281,0.13348091,1814.8,1814.5,0.01]
[1680510620662,0.13348091,1814.8,1814.5,0.28555]
[1680510621087,0.13348091,1814.8,1814.6,0.28554]
[1680510621443,0.11000001,1814.8,1814.5,6.63665]
[1680510621695,0.11600001,1814.8,1814.6,0.01]
[1680510621846,0.11600001,1814.8,1814.6,6.62661]
[1680510622177,0.11600001,1814.8,1814.6,6.62861]
[1680510622178,0.11000001,1814.8,1814.6,6.62861]
[1680510622380,0.11000001,1814.8,1814.7,0.83657]
[1680510624157,0.11000001,1814.8,1814.7,1.93868]
[1680510624886,0.11000001,1814.8,1814.7,7.73868]
[1680510625047,0.11000001,1814.8,1814.7,7.74068]
[1680510625243,0.11000001,1814.8,1814.7,0.83857]
[1680510625447,0.11000001,1814.8,1814.7,0.83657]
[1680510625684,0.11000001,1814.8,1814.7,0.27552]
[1680510625985,0.11000001,1814.8,1814.7,0.01]
[1680510626186,0.11000001,1814.8,1814.7,0.27552]
[1680510627112,0.11000001,1814.8,1814.6,0.27553]
[1680510627486,1.21,1814.7,1814.5,0.28555]
[1680510627684,1.2334809,1814.7,1814.5,0.01]
[1680510628300,1.36842899,1814.7,1814.5,0.01]
[1680510628504,1.37442899,1814.7,1814.5,0.01]
[1680510628706,1.37442899,1814.7,1814.4,0.01]
[1680510628918,1.37442899,1814.7,1814.3,10.012]
[1680510629302,2.51057393,1814.7,1814.3,10.012]
[1680510629615,0.25105739,1814.6,1814.3,0.002]
[1680510629914,3.99676728,1814.5,1814.2,0.002]
[1680510630218,3.99676728,1814.5,1814.1,10.002]
[1680510630219,0.23,1814.4,1814.1,10.002]
[1680510630393,0.236,1814.4,1814.1,10.002]
[1680510630591,0.236,1814.4,1814.1,0.002]
[1680510630788,0.67305473,1814.4,1813.9,0.01]
[1680510631019,3.006,1814.4,1814.1,0.27561]
[1680510631217,0.006,1814.4,1814.0,0.27562]
[1680510631418,1.215,1814.5,1814.0,0.28562]
[1680510631588,4.00276728,1814.5,1814.0,0.28562]
[1680510631916,4.00276728,1814.5,1814.1,0.01]
[1680510632089,0.006,1814.5,1814.2,0.8268]
[1680510632413,0.006,1814.5,1814.1,0.01]
[1680510632414,4.00376728,1814.4,1814.0,0.01]
[1680510632615,0.006,1814.4,1814.1,2.78776728]
[1680510632828,0.006,1814.7,1814.0,3.58322]
[1680510632987,0.006,1814.7,1814.3,1.92906]
[1680510633393,0.11000001,1814.8,1814.5,0.27555]
[1680510633719,0.11000001,1814.8,1814.5,0.28555]
[1680510634091,0.11000001,1814.8,1814.5,0.83666]
[1680510634499,0.11000001,1814.8,1814.5,0.82666]
[1680510634737,0.11000001,1814.8,1814.5,1.92889]
[1680510634911,0.11600001,1814.8,1814.5,1.92889]
[1680510635630,0.11000001,1814.8,1814.5,1.92889]
[1680510635794,0.11000001,1814.8,1814.7,0.82657]
[1680510638840,0.11000001,1814.8,1814.5,0.28554]
[1680510640313,0.1066178,1814.8,1814.6,1.219]
[1680510640602,0.1066178,1814.8,1814.7,1.93868]
[1680510641741,0.1066178,1814.8,1814.7,10.52644728]
[1680510641911,0.1066178,1814.8,1814.7,1.94068]
[1680510642115,0.1066178,1814.8,1814.7,1.93868]
[1680510644822,0.1066178,1814.8,1814.7,0.83657]
[1680510645145,1.5690987,1814.8,1814.6,0.008]
[1680510645318,1.60290987,1814.7,1814.4,0.006]
[1680510645517,1.60290987,1814.7,1814.4,0.28156]
[1680510645716,0.23,1814.7,1814.4,0.8267]
[1680510645915,0.1300987,1814.8,1814.5,0.01]
[1680510646115,0.1300987,1814.8,1814.5,0.27555]
[1680510646720,0.1300987,1814.8,1814.3,0.016]
[1680510646721,4.13386598,1814.8,1814.3,0.016]
[1680510646948,2.432,1814.4,1814.0,0.002]
[1680510647241,1.35381,1814.1,1813.7,0.226371]
[1680510647443,1.21,1813.9,1813.7,0.226371]
[1680510647648,0.36783,1813.8,1813.7,0.220371]
[1680510647865,2.60569584,1813.8,1813.5,0.1]
[1680510648019,1.47656958,1813.7,1813.5,0.1]
[1680510648217,2.47495452,1813.7,1813.5,0.1]
[1680510648422,0.232,1813.8,1813.5,0.1]
[1680510648751,3.23,1813.8,1813.5,0.1]
[1680510649054,0.23,1813.8,1813.5,0.1]
[1680510649235,0.23,1813.9,1813.5,0.1]
[1680510649419,3.46236728,1813.9,1813.5,0.1]
[1680510649619,3.0,1813.8,1813.5,0.1]
[1680510649948,4.13621494,1813.8,1813.5,0.1]
[1680510650107,4.23376728,1813.7,1813.5,0.1]
[1680510650634,0.23,1813.7,1813.5,0.1]
[1680510650948,0.002,1813.9,1813.5,0.1]
[1680510651147,0.23,1813.9,1813.5,0.1]
[1680510651348,0.3518,1813.9,1813.5,0.1]
[1680510651521,1.21,1813.8,1813.5,0.1]
[1680510651724,0.0234809,1813.7,1813.5,0.1]
[1680510652026,1.2394809,1813.7,1813.5,0.1]
[1680510652352,2.94897927,1813.7,1813.5,0.1]
[1680510652648,0.16121199,1813.7,1813.5,0.1]
[1680510652861,0.0234809,1813.7,1813.5,0.1]
[1680510653075,0.2534809,1813.7,1813.5,0.1]
[1680510653588,2.78776728,1813.6,1813.5,0.1]
[1680510653740,3.01776728,1813.6,1813.5,0.1]
[1680510654077,0.23,1813.6,1813.5,0.1]
[1680510654238,0.2534809,1813.7,1813.5,0.1]
[1680510654433,0.60455048,1813.7,1813.5,0.1]
[1680510654636,2.78776728,1813.6,1813.5,0.1]
[1680510654877,5.14676728,1813.6,1813.5,0.1]
[1680510655036,5.28660728,1813.6,1813.5,0.1]
[1680510655781,0.232,1813.6,1813.5,0.1]
[1680510656075,3.11238494,1813.8,1813.5,0.1]
[1680510656369,0.54123849,1813.7,1813.5,0.1]
[1680510656576,0.23,1813.7,1813.5,0.1]
[1680510656948,0.36784,1813.7,1813.5,0.1]
[1680510657332,0.64351,1813.7,1813.5,0.1]
[1680510658040,3.43127728,1813.7,1813.5,0.1]
[1680510658261,6.43127728,1813.7,1813.5,0.1]
[1680510658464,0.64312773,1813.6,1813.5,0.1]
[1680510658632,0.87312773,1813.6,1813.5,0.1]
[1680510659435,3.82221591,1813.6,1813.5,0.1]
[1680510659854,3.68437591,1813.6,1813.5,0.1]
[1680510660270,3.82221591,1813.6,1813.5,0.1]
[1680510661496,7.20729085,1813.6,1813.5,0.1]
[1680510661801,10.48783964,1813.6,1813.5,0.1]
[1680510662165,11.45722284,1813.6,1813.5,0.1]
[1680510662357,11.17867405,1813.6,1813.5,0.1]
[1680510662561,10.20929085,1813.6,1813.5,0.1]
[1680510662758,9.21090591,1813.6,1813.5,0.1]
[1680510662984,8.93521591,1813.6,1813.5,0.1]
[1680510663262,9.21090591,1813.6,1813.5,0.1]
[1680510663760,8.93521591,1813.6,1813.5,0.1]
[1680510663963,6.82821591,1813.6,1813.5,0.09704405]
[1680510664206,6.82421591,1813.6,1813.5,0.09704405]
[1680510664591,9.22490591,1813.6,1813.5,0.09704405]
[1680510666768,10.22329085,1813.6,1813.5,0.09704405]
[1680510666975,0.99838494,1813.4,1813.0,0.1]
[1680510667272,2.123,1813.1,1813.0,0.1]
[1680510667485,0.23,1813.1,1813.0,0.1]
[1680510667685,0.002,1813.3,1813.0,0.1]
[1680510667926,2.49587,1813.3,1813.0,0.1]
[1680510668326,5.28363728,1813.3,1813.0,0.1]
[1680510668499,0.52836373,1813.2,1813.0,0.1]
[1680510668699,3.31613101,1813.2,1813.0,0.1]
[1680510668899,0.23,1813.1,1813.0,0.1]
[1680510669140,2.47888,1813.1,1813.0,0.1]
[1680510669514,5.54241728,1813.1,1813.0,0.1]
[1680510669717,6.15169538,1813.1,1813.0,0.1]
[1680510670152,9.15169538,1813.1,1813.0,0.1]
[1680510670657,9.17517628,1813.1,1813.0,0.1]
[1680510670825,7.06417628,1813.1,1813.0,0.1]
[1680510671225,6.65052628,1813.1,1813.0,0.1]
[1680510671821,2.135,1813.4,1813.0,0.12253637]
[1680510672064,0.008,1813.6,1813.2,2.129]
[1680510672359,0.006,1813.9,1813.3,0.8272]
[1680510672659,4.5721,1814.0,1813.3,3.29911759]
[1680510672660,4.5761,1814.0,1813.3,3.29911759]
[1680510673139,0.006,1814.0,1813.4,2.43938495]
[1680510673456,2.129,1814.0,1813.3,0.86172264]
[1680510673646,2.26682,1814.0,1813.4,0.27572]
[1680510673824,2.26682,1814.0,1813.3,0.30825264]
[1680510673825,2.54245,1814.0,1813.3,0.30825264]
[1680510674024,2.54245,1814.0,1813.3,0.30826264]
[1680510674626,0.23,1813.9,1813.3,0.30826264]
[1680510674823,0.507245,1813.9,1813.3,0.85974264]
[1680510675032,0.507245,1813.9,1813.3,0.84974264]
[1680510676257,0.507245,1813.9,1813.3,0.85974264]
[1680510676755,0.23,1813.9,1813.3,0.85974264]
[1680510676960,0.23,1814.0,1813.3,0.85974264]
[1680510677158,5.129,1814.1,1813.4,0.01]
[1680510677365,2.78776728,1814.0,1813.6,0.82707]
[1680510678521,2.78776728,1814.0,1813.5,0.2857]
[1680510678721,0.50877673,1813.9,1813.5,0.2857]
[1680510678926,2.78776728,1813.8,1813.5,0.01]
[1680510679230,2.78776728,1813.8,1813.2,0.016]
[1680510679231,2.358,1813.7,1813.2,0.016]
[1680510679431,2.78776728,1813.6,1813.2,0.006]
[1680510679766,2.344,1813.5,1813.2,0.006]
[1680510679968,2.78776728,1813.4,1813.0,0.106]
[1680510680280,0.23,1813.3,1813.0,0.106]
[1680510680459,0.23,1813.3,1813.0,0.38178]
[1680510680779,2.67052973,1813.5,1813.0,0.93335]
[1680510681078,0.23,1813.4,1813.0,0.38178]
[1680510682233,0.23,1813.4,1813.0,0.106]
[1680510682430,2.78776728,1813.3,1813.0,0.106]
[1680510682645,0.13785,1813.5,1813.0,0.38177]
[1680510682646,0.23,1813.2,1813.0,0.38177]
[1680510682871,3.0,1813.6,1813.0,0.92734]
[1680510683174,3.01776728,1813.5,1813.0,0.92734]
[1680510683373,3.01776728,1813.5,1813.0,0.93334]
[1680510685648,3.15561728,1813.5,1813.0,0.106]
[1680510685849,3.43131728,1813.5,1813.0,0.106]
[1680510686045,0.34313173,1813.4,1813.0,0.106]
[1680510686275,3.01776728,1813.3,1813.0,0.106]
[1680510686579,3.15563728,1813.3,1813.0,0.106]
[1680510686793,3.0,1813.2,1813.0,0.1]
[1680510686994,3.08776728,1813.1,1813.0,0.1]
[1680510687150,3.45564728,1813.1,1813.0,0.1]
[1680510687492,3.31776728,1813.1,1813.0,0.1]
[1680510691354,0.23,1813.1,1813.0,0.1]
[1680510691756,4.03877668,1813.4,1813.0,0.1]
[1680510691757,0.55778495,1813.4,1813.0,0.1]
[1680510692056,7.14965,1813.5,1813.0,0.1]
[1680510692057,2.78776728,1813.3,1813.0,0.1]
[1680510692375,2.78776728,1813.3,1813.0,0.37578]
[1680510692899,0.002,1813.4,1813.0,0.92735]
[1680510693062,0.613784,1813.6,1813.0,0.92735]
[1680510693262,2.78776728,1813.5,1813.0,0.92735]
[1680510694069,3.0,1813.4,1813.1,0.52749462]
[1680510694291,3.0,1813.4,1813.1,0.80325462]
[1680510694495,3.0,1813.4,1813.1,0.52749462]
[1680510694666,3.0,1813.4,1813.1,0.80325462]
[1680510695003,3.0,1813.4,1813.1,1.35479462]
[1680510695215,3.008,1813.6,1813.1,1.35479462]
[1680510695512,0.23,1813.5,1813.1,1.35479462]
[1680510695798,3.002,1813.6,1813.1,1.35479462]
[1680510695965,0.008,1813.8,1813.1,1.35479462]
[1680510696166,2.78776728,1813.8,1813.1,1.35479462]
[1680510696476,3.0,1813.7,1813.1,1.35479462]
[1680510696864,2.99797099,1813.7,1813.1,1.36079462]
[1680510697309,2.99797099,1813.7,1813.1,1.37079462]
[1680510698521,2.99797099,1813.7,1813.2,0.02253388]
[1680510698668,2.99797099,1813.7,1813.3,0.27573]
[1680510699018,3.00397099,1813.7,1813.3,0.82408642]
[1680510700903,0.002,1813.8,1813.4,0.0225314]
[1680510701103,0.006,1813.9,1813.5,0.82711]
[1680510701104,0.23,1813.9,1813.5,0.82711]
[1680510701311,3.01776728,1813.9,1813.5,0.82711]
[1680510701809,0.23,1813.9,1813.5,0.82711]
[1680510701993,0.008,1814.0,1813.5,0.82711]
[1680510701994,0.23,1814.0,1813.5,0.82711]
[1680510702175,3.01776728,1814.0,1813.5,0.82711]
[1680510703785,0.008,1814.1,1813.5,0.83711]
[1680510704109,0.008,1814.2,1813.6,0.01]
[1680510704275,0.006,1814.3,1813.7,1.92965]
[1680510704472,2.78776728,1814.2,1813.7,1.92965]
[1680510704743,2.78776728,1814.2,1813.6,2.129]
[1680510704744,4.91676728,1814.2,1813.6,0.012]
[1680510704877,0.49167673,1814.1,1813.5,0.2757]
[1680510705078,2.78776728,1814.0,1813.3,16.77327]
[1680510705331,2.78776728,1814.0,1813.4,0.27571]
[1680510705815,0.23,1813.9,1813.4,0.27571]
[1680510706293,3.15558728,1813.9,1813.4,0.27571]
[1680510706627,2.78776728,1813.8,1813.4,0.27572]
[1680510706792,3.01776728,1813.9,1813.4,0.82717]
[1680510707386,3.01776728,1813.9,1813.5,0.02253015]
[1680510707703,3.01776728,1813.9,1813.5,0.84963015]
[1680510707904,0.23,1813.9,1813.5,0.84963015]
[1680510708104,3.23,1814.0,1813.5,0.84963015]
[1680510708302,6.02376728,1814.0,1813.5,0.84963015]
[1680510708510,6.02576728,1814.0,1813.5,0.84963015]
[1680510708810,3.238,1814.0,1813.5,0.85963015]
[1680510708976,3.23,1814.0,1813.5,0.85963015]
[1680510709177,0.23,1814.0,1813.5,0.85963015]
[1680510709821,0.23,1814.0,1813.5,0.84963015]
[1680510710117,4.8741,1814.1,1813.5,0.84963015]
[1680510710317,4.8661,1814.1,1813.5,0.84963015]
[1680510710724,0.008,1814.2,1813.5,0.84963015]
[1680510710910,3.01776728,1814.2,1813.6,0.01]
[1680510711107,3.01776728,1814.2,1813.7,0.827]
[1680510711624,3.15556728,1814.2,1813.6,0.28568]
[1680510711789,5.21432401,1814.1,1813.5,1.12536015]
[1680510711986,0.23,1814.0,1813.5,0.84963015]
[1680510712204,6.15557728,1814.0,1813.5,0.29822015]
[1680510712500,2.78776728,1813.9,1813.5,0.02253015]
[1680510712699,0.23,1813.8,1813.4,0.28571]
[1680510712915,3.01776728,1813.8,1813.6,0.5151256]
[1680510713209,3.31954401,1813.8,1813.6,0.5151256]
[1680510713412,2.78776728,1813.7,1813.6,0.5151256]
[1680510713721,5.56026728,1813.7,1813.6,0.5151256]
[1680510713927,5.14876728,1813.7,1813.0,0.65754]
[1680510714089,5.359,1813.6,1813.1,0.27576]
[1680510714281,8.97742701,1813.6,1813.1,0.27576]
[1680510714927,3.232,1813.6,1813.2,0.4984939]
[1680510715094,3.008,1813.7,1813.2,0.4984939]
[1680510715299,3.0,1813.7,1813.2,0.7742339]
[1680510715521,3.0,1813.7,1813.2,1.3257439]
[1680510715687,4.02761767,1813.7,1813.2,1.3257439]
[1680510715893,3.0,1813.7,1813.2,1.3257439]
[1680510716192,3.0,1813.7,1813.2,9.27727778]
[1680510716423,0.002,1813.7,1813.3,0.01]
[1680510716602,4.8614,1813.8,1813.4,0.82716]
[1680510716789,0.006,1813.8,1813.4,0.8496914]
[1680510716995,7.1069,1814.2,1813.4,11.2651914]
[1680510717227,3.01776728,1814.1,1813.4,11.2771914]
[1680510717524,3.02376728,1814.1,1813.4,11.2771914]
[1680510717687,3.0,1814.0,1813.4,10.7257514]
[1680510717897,0.14581,1814.1,1813.5,1.216]
[1680510718204,0.13781,1814.1,1813.5,1.216]
[1680510718396,0.13781,1814.1,1813.5,1.4917]
[1680510718603,2.78776728,1814.1,1813.5,1.4917]
[1680510718802,2.78776728,1814.1,1813.5,0.2757]
[1680510719293,1.216,1813.9,1813.5,0.82711]
[1680510719494,0.3516,1813.8,1813.5,0.82711]
[1680510719717,0.23,1813.8,1813.5,0.82711]
[1680510720087,3.0,1814.1,1813.5,0.82711]
[1680510720301,3.01776728,1814.0,1813.5,0.2757]
[1680510720500,0.23,1814.0,1813.5,0.82711]
[1680510721530,0.22644778,1814.0,1813.5,0.82711]
[1680510721907,3.0,1814.1,1813.5,0.83711]
[1680510722107,3.0,1814.1,1813.5,0.84311]
[1680510722425,3.0,1814.1,1813.6,0.01]
[1680510722734,0.002,1814.2,1813.7,0.82701]
[1680510722937,3.0,1814.3,1813.7,6.62701]
[1680510723128,8.41082958,1814.4,1813.8,0.02252642]
[1680510723324,11.19259686,1814.4,1813.9,0.8269]
[1680510723522,8.19259686,1814.4,1813.9,0.8269]
[1680510723698,3.0,1814.3,1813.9,0.8269]
[1680510726037,8.19259686,1814.4,1813.9,0.8269]
[1680510726198,0.23,1814.3,1813.9,0.8269]
[1680510727914,0.23,1814.3,1814.0,0.49552643]
[1680510728114,0.23,1814.3,1814.1,0.82684]
[1680510728701,0.54962958,1814.4,1814.1,0.82684]
[1680510728902,3.33539686,1814.4,1814.1,0.27561]
[1680510729404,3.88243655,1814.4,1814.1,0.27561]
[1680510730208,3.01776728,1814.3,1814.0,0.49552643]
[1680510730407,2.127,1814.2,1814.0,0.49552643]
[1680510730608,3.01776728,1814.1,1814.0,0.49552643]
[1680510731044,3.01776728,1814.1,1813.7,0.27567]
[1680510731337,3.01776728,1814.1,1813.6,0.27568]
[1680510731502,3.83244401,1814.1,1813.6,0.27568]
[1680510731698,3.83244401,1814.1,1813.6,0.82706]
[1680510731948,0.23,1814.1,1813.7,0.4965982]
[1680510732246,0.23,1814.1,1813.7,0.7722582]
[1680510733850,0.23,1814.1,1813.7,1.3236082]
[1680510734159,10.0422,1814.2,1813.7,1.3236082]
[1680510734366,10.70296728,1814.2,1813.7,0.7722582]
[1680510734567,0.94419669,1814.1,1813.7,0.7722582]
[1680510734867,1.17419669,1814.1,1813.7,0.4965982]
[1680510735045,1.17419669,1814.1,1813.7,0.7722682]
[1680510735251,4.17419669,1814.1,1813.7,0.7722682]
[1680510737819,4.17419669,1814.1,1813.7,2.4263282]
[1680510738020,0.41741967,1814.0,1813.7,2.4263282]
[1680510738231,4.17619669,1814.1,1813.7,2.4263282]
[1680510738431,4.17419669,1814.1,1813.7,1.3236182]
[1680510738636,4.17419669,1814.1,1813.7,0.7722682]
[1680510738879,4.17419669,1814.1,1813.7,1.3236182]
[1680510739534,4.17419669,1814.1,1813.7,0.4965982]
[1680510739733,4.17419669,1814.1,1813.7,0.7722682]
[1680510740776,4.17419669,1814.1,1813.7,1.3236182]
[1680510740954,0.002,1814.2,1813.7,1.3236182]
[1680510741138,0.006,1814.3,1813.7,1.3236182]
[1680510741139,0.23,1814.3,1813.7,11.6161182]
[1680510741332,0.23,1814.3,1813.7,11.0807682]
[1680510741537,0.23,1814.3,1813.7,11.0827682]
[1680510741738,0.23,1814.3,1813.7,11.6341182]
[1680510743376,0.23,1814.3,1813.7,11.65664587]
[1680510744707,6.7108,1814.5,1813.7,17.45664587]
[1680510744889,4.5858,1814.5,1813.9,2.11]
[1680510745066,3.008,1814.6,1814.0,1.92934]
[1680510745272,2.78776728,1814.6,1814.0,1.93934]
[1680510745999,2.78776728,1814.6,1814.1,0.47469752]
[1680510746309,3.33514587,1814.6,1814.2,0.82678]
[1680510746528,0.23,1814.5,1814.2,0.82678]
[1680510746734,0.58651459,1814.5,1814.2,0.82678]
[1680510747576,0.58651459,1814.5,1814.2,0.82408213]
[1680510747769,0.23,1814.5,1814.2,1.92649213]
[1680510748096,0.55337859,1814.6,1814.2,1.92649213]
[1680510748680,0.55337859,1814.6,1814.2,0.82408213]
[1680510748991,0.54737859,1814.6,1814.2,0.82408213]
[1680510749190,0.006,1814.6,1814.2,0.82408213]
[1680510749507,0.236,1814.6,1814.2,0.8466036]
[1680510750105,2.22768058,1814.7,1814.2,6.11012147]
[1680510750422,0.11000001,1814.8,1814.2,0.86132147]
[1680510750626,0.11000001,1814.8,1814.3,0.01]
[1680510750867,0.11000001,1814.8,1814.4,0.8267]
[1680510751162,2.29074103,1814.8,1814.4,0.8267]
[1680510751345,0.11000001,1814.8,1814.4,0.8267]
[1680510752548,0.11000001,1814.8,1814.4,0.27556]
[1680510753632,0.11000001,1814.8,1814.4,6.6267]
[1680510753834,0.11000001,1814.8,1814.4,6.6287]
[1680510755956,0.11000001,1814.8,1814.4,0.8287]
[1680510756133,0.11000001,1814.8,1814.4,0.8267]
[1680510757235,0.11000001,1814.8,1814.4,0.84921897]
[1680510757932,0.11000001,1814.8,1814.5,0.58758245]
[1680510758259,0.11000001,1814.8,1814.6,0.27554]
[1680510762441,0.11000001,1814.8,1814.5,0.58758245]
[1680510763067,3.03551729,1814.8,1814.5,0.58758245]
[1680510763264,0.30355173,1814.7,1814.5,0.58758245]
[1680510763676,0.11000001,1814.8,1814.5,0.86313245]
[1680510764556,0.11000001,1814.8,1814.7,0.27552]
[1680510764766,0.11000001,1814.8,1814.7,0.82657]
[1680510765334,0.11000001,1814.9,1814.7,9.41433728]
[1680510765547,0.11000001,1814.9,1814.8,7.93551402]
[1680510765766,0.11000001,1814.9,1814.8,8.76404402]
[1680510767571,0.11000001,1814.9,1814.8,0.85104402]
[1680510767747,0.11000001,1814.9,1814.8,0.84904402]
[1680510770823,0.11000001,1814.9,1814.8,0.85904402]
[1680510771172,0.11000001,1814.9,1814.8,0.30802402]
[1680510771518,0.11000001,1814.9,1814.8,0.27551]
[1680510772366,0.11000001,1814.9,1814.7,10.4637]
[1680510772571,0.11000001,1814.9,1814.7,0.008]
[1680510772902,0.11000001,1814.9,1814.7,0.27552]
[1680510773109,0.11000001,1814.9,1814.8,0.56194268]
[1680510775175,0.11000001,1814.9,1814.8,0.83745268]
[1680510775617,0.11000001,1814.9,1814.8,1.38847268]
[1680510776011,0.11000001,1814.9,1814.8,2.49051268]
[1680510776324,0.11000001,1814.9,1814.8,2.50051268]
[1680510776979,0.11000001,1814.9,1814.8,8.30051268]
[1680510777202,0.11000001,1814.9,1814.8,2.50251268]
[1680510777402,0.11000001,1814.9,1814.8,2.50051268]
[1680510778501,0.11000001,1814.9,1814.8,1.39847268]
[1680510779111,0.11000001,1814.9,1814.8,2.50051268]
[1680510779684,0.11000001,1814.9,1814.8,2.49051268]
[1680510780118,0.11000001,1814.9,1814.8,8.29051268]
[1680510780416,0.11000001,1814.9,1814.8,8.29251268]
[1680510780718,0.11000001,1814.9,1814.8,8.30251268]
[1680510783223,0.11000001,1814.9,1814.8,8.30851268]
[1680510785840,0.11000001,1814.9,1814.8,11.09627996]
[1680510786640,0.11000001,1814.9,1814.8,13.19427996]
[1680510786825,0.11000001,1814.9,1814.8,13.20427996]